[Event "Titled Tuesday Blitz February 07 Late 2023"]
[White "So, Wesley"]
[Black "Fedoseev, Vladimir"]
[WhiteFideId "5202213"]
[BlackFideId "24130737"]
[WhiteElo "2760"]
[BlackElo "2680"]
[Result "1/2-1/2"]
[Round "06"]
[TimeControl "180+2"]
[Date "2023.02.07"]
[WhiteClock "0:00:05"]
[BlackClock "0:00:10"]

1. Nf3 {[%clk 0:03:00]}  Nf6 {[%clk 0:02:57]} 2. c4 {[%clk 0:03:00]}  e6 {[%clk 0:02:54]} 3. g3 {[%clk 0:02:59]}  d5 {[%clk 0:02:53]} 4. Bg2 {[%clk 0:02:59]}  Be7 {[%clk 0:02:53]} 5. O-O {[%clk 0:02:57]}  O-O {[%clk 0:02:53]} 6. d4 {[%clk 0:02:58]}  dxc4 {[%clk 0:02:52]} 7. Na3 {[%clk 0:02:55]}  Bxa3 {[%clk 0:02:43]} 8. bxa3 {[%clk 0:02:56]}  Bd7 {[%clk 0:02:42]} 9. Qc2 {[%clk 0:02:56]}  Bc6 {[%clk 0:02:37]} 10. a4 {[%clk 0:02:56]}  Bd5 {[%clk 0:02:26]} 11. Ba3 {[%clk 0:02:53]}  Re8 {[%clk 0:02:26]} 12. Rfe1 {[%clk 0:02:53]}  Be4 {[%clk 0:01:40]} 13. Qxc4 {[%clk 0:02:51]}  Nbd7 {[%clk 0:01:40]} 14. a5 {[%clk 0:02:26]}  Rc8 {[%clk 0:01:39]} 15. Qc3 {[%clk 0:02:21]}  Bd5 {[%clk 0:01:30]} 16. Bb4 {[%clk 0:01:52]}  b6 {[%clk 0:01:27]} 17. axb6 {[%clk 0:01:48]}  cxb6 {[%clk 0:01:22]} 18. Qb2 {[%clk 0:01:46]}  Qc7 {[%clk 0:01:18]} 19. Bf1 {[%clk 0:01:41]}  Bxf3 {[%clk 0:01:14]} 20. exf3 {[%clk 0:01:42]}  Qb7 {[%clk 0:01:13]} 21. a4 {[%clk 0:01:38]}  Qxf3 {[%clk 0:01:08]} 22. Bg2 {[%clk 0:01:38]}  Qh5 {[%clk 0:01:06]} 23. a5 {[%clk 0:01:38]}  Nd5 {[%clk 0:01:04]} 24. Bd2 {[%clk 0:01:36]}  N7f6 {[%clk 0:01:03]} 25. h3 {[%clk 0:01:34]}  Qg6 {[%clk 0:01:02]} 26. Rac1 {[%clk 0:01:30]}  h6 {[%clk 0:00:58]} 27. Qb5 {[%clk 0:01:25]}  bxa5 {[%clk 0:00:46]} 28. Qxa5 {[%clk 0:01:16]}  Qd3 {[%clk 0:00:44]} 29. Rcd1 {[%clk 0:01:15]}  Qxd4 {[%clk 0:00:32]} 30. Bxh6 {[%clk 0:01:14]}  Qb6 {[%clk 0:00:30]} 31. Bd2 {[%clk 0:01:12]}  Qxa5 {[%clk 0:00:26]} 32. Bxa5 {[%clk 0:01:13]}  Rc5 {[%clk 0:00:24]} 33. Ra1 {[%clk 0:01:11]}  Rec8 {[%clk 0:00:23]} 34. Bd2 {[%clk 0:01:06]}  R8c7 {[%clk 0:00:23]} 35. Ra3 {[%clk 0:01:06]}  Rc2 {[%clk 0:00:23]} 36. Bg5 {[%clk 0:01:04]}  Nc3 {[%clk 0:00:20]} 37. Rea1 {[%clk 0:00:48]}  Nfd5 {[%clk 0:00:20]} 38. Rxa7 {[%clk 0:00:45]}  Rxa7 {[%clk 0:00:20]} 39. Rxa7 {[%clk 0:00:46]}  f6 {[%clk 0:00:21]} 40. Bxd5 {[%clk 0:00:32]}  exd5 {[%clk 0:00:21]} 41. Bf4 {[%clk 0:00:27]}  g5 {[%clk 0:00:21]} 42. Bd6 {[%clk 0:00:25]}  d4 {[%clk 0:00:21]} 43. Bb4 {[%clk 0:00:25]}  Ne4 {[%clk 0:00:19]} 44. Rd7 {[%clk 0:00:20]}  Nxf2 {[%clk 0:00:18]} 45. Rxd4 {[%clk 0:00:20]}  Nxh3+ {[%clk 0:00:18]} 46. Kf1 {[%clk 0:00:20]}  Kf7 {[%clk 0:00:16]} 47. Rd2 {[%clk 0:00:17]}  Rxd2 {[%clk 0:00:11]} 48. Bxd2 {[%clk 0:00:18]}  g4 {[%clk 0:00:11]} 49. Be3 {[%clk 0:00:15]}  Ke6 {[%clk 0:00:11]} 50. Ke2 {[%clk 0:00:15]}  Kd5 {[%clk 0:00:11]} 51. Kd3 {[%clk 0:00:14]}  f5 {[%clk 0:00:08]} 52. Kd2 {[%clk 0:00:11]}  Ke4 {[%clk 0:00:08]} 53. Ke2 {[%clk 0:00:11]}  Ke5 {[%clk 0:00:07]} 54. Kd3 {[%clk 0:00:11]}  Kd5 {[%clk 0:00:08]} 55. Kd2 {[%clk 0:00:11]}  Ke5 {[%clk 0:00:07]} 56. Kd3 {[%clk 0:00:11]}  Ke6 {[%clk 0:00:06]} 57. Ke2 {[%clk 0:00:08]}  Kf6 {[%clk 0:00:06]} 58. Kd3 {[%clk 0:00:07]}  Ng5 {[%clk 0:00:06]} 59. Ke2 {[%clk 0:00:05]}  Ne4 {[%clk 0:00:06]} 60. Bf4 {[%clk 0:00:06]}  Ke6 {[%clk 0:00:06]} 61. Kd3 {[%clk 0:00:05]}  Kd5 {[%clk 0:00:07]} 62. Ke3 {[%clk 0:00:05]}  Nc5 {[%clk 0:00:07]} 63. Bb8 {[%clk 0:00:05]}  Ne6 {[%clk 0:00:08]} 64. Kd3 {[%clk 0:00:04]}  Kc5 {[%clk 0:00:07]} 65. Ke3 {[%clk 0:00:04]}  Kc4 {[%clk 0:00:08]} 66. Bd6 {[%clk 0:00:03]}  Kc3 {[%clk 0:00:09]} 67. Bb8 {[%clk 0:00:04]}  Kc2 {[%clk 0:00:09]} 68. Ke2 {[%clk 0:00:04]}  Kc3 {[%clk 0:00:08]} 69. Ke3 {[%clk 0:00:04]}  Kc4 {[%clk 0:00:09]} 70. Be5 {[%clk 0:00:04]}  Kd5 {[%clk 0:00:09]} 71. Bb8 {[%clk 0:00:04]}  Nc5 {[%clk 0:00:09]} 72. Kf4 {[%clk 0:00:04]}  Ke6 {[%clk 0:00:09]} 73. Ke3 {[%clk 0:00:05]}  Nd7 {[%clk 0:00:08]} 74. Bf4 {[%clk 0:00:05]}  Nf6 {[%clk 0:00:09]} 75. Bb8 {[%clk 0:00:05]}  Nh5 {[%clk 0:00:08]} 76. Kd4 {[%clk 0:00:05]}  Ng7 {[%clk 0:00:07]} 77. Ke3 {[%clk 0:00:05]}  Kf6 {[%clk 0:00:07]} 78. Kd4 {[%clk 0:00:05]}  Ne6+ {[%clk 0:00:08]} 79. Ke3 {[%clk 0:00:05]}  Ng5 {[%clk 0:00:08]} 80. Bf4 {[%clk 0:00:05]}  Nh3 {[%clk 0:00:09]} 81. Bb8 {[%clk 0:00:05]}  Ke6 {[%clk 0:00:10]} 82. Bc7 {[%clk 0:00:05]}  Ke7 {[%clk 0:00:10]} 83. Bb8 {[%clk 0:00:06]}  Kf6 {[%clk 0:00:11]} 84. Bc7 {[%clk 0:00:06]}  Ke6 {[%clk 0:00:12]} 85. Bb8 {[%clk 0:00:06]}  Ng5 {[%clk 0:00:12]} 86. Kd4 {[%clk 0:00:06]}  Nf7 {[%clk 0:00:13]} 87. Ke3 {[%clk 0:00:07]}  Nd8 {[%clk 0:00:14]} 88. Kf4 {[%clk 0:00:07]}  Nc6 {[%clk 0:00:14]} 89. Bc7 {[%clk 0:00:06]}  Ne7 {[%clk 0:00:14]} 90. Bb8 {[%clk 0:00:06]}  Nd5+ {[%clk 0:00:15]} 91. Kg5 {[%clk 0:00:06]}  Nf6 {[%clk 0:00:14]} 92. Kf4 {[%clk 0:00:06]}  Nd7 {[%clk 0:00:13]} 93. Bc7 {[%clk 0:00:06]}  Nc5 {[%clk 0:00:13]} 94. Bb8 {[%clk 0:00:05]}  Na6 {[%clk 0:00:11]} 95. Be5 {[%clk 0:00:04]}  Nb4 {[%clk 0:00:11]} 96. Bb8 {[%clk 0:00:05]}  Nc6 {[%clk 0:00:10]} 97. Bc7 {[%clk 0:00:05]}  Kf6 {[%clk 0:00:11]} 98. Bd6 {[%clk 0:00:04]}  Kg6 {[%clk 0:00:10]} 99. Bc7 {[%clk 0:00:04]}  Nb4 {[%clk 0:00:10]} 100. Bb8 {[%clk 0:00:05]}  Nd5+ {[%clk 0:00:10]} 101. Ke5 {[%clk 0:00:05]}  Ne3 {[%clk 0:00:10]} 1/2-1/2


[Site "https://www.chess.com"]

[Event "Titled Tuesday Blitz February 07 Late 2023"]
[White "Rasulov, Vugar"]
[Black "Naroditsky, Daniel"]
[WhiteFideId "13402390"]
[BlackFideId "2026961"]
[WhiteElo "2523"]
[BlackElo "2618"]
[Result "0-1"]
[Round "06"]
[TimeControl "180+2"]
[Date "2023.02.07"]
[WhiteClock "0:00:01"]
[BlackClock "0:00:15"]

1. Nf3 {[%clk 0:03:00]}  Nf6 {[%clk 0:02:57]} 2. c4 {[%clk 0:03:00]}  g6 {[%clk 0:02:58]} 3. b3 {[%clk 0:02:58]}  Bg7 {[%clk 0:02:55]} 4. Bb2 {[%clk 0:02:59]}  O-O {[%clk 0:02:56]} 5. g3 {[%clk 0:02:58]}  d6 {[%clk 0:02:55]} 6. d4 {[%clk 0:02:58]}  Nbd7 {[%clk 0:02:54]} 7. Bg2 {[%clk 0:02:57]}  e5 {[%clk 0:02:55]} 8. dxe5 {[%clk 0:02:57]}  dxe5 {[%clk 0:02:51]} 9. Nfd2 {[%clk 0:02:27]}  c6 {[%clk 0:02:32]} 10. O-O {[%clk 0:02:26]}  Qc7 {[%clk 0:02:31]} 11. Nc3 {[%clk 0:02:23]}  Rd8 {[%clk 0:02:30]} 12. Nde4 {[%clk 0:02:14]}  Nxe4 {[%clk 0:02:26]} 13. Nxe4 {[%clk 0:02:15]}  Nc5 {[%clk 0:02:26]} 14. Nxc5 {[%clk 0:02:01]}  Rxd1 {[%clk 0:02:25]} 15. Raxd1 {[%clk 0:02:02]}  Bg4 {[%clk 0:02:15]} 16. Rfe1 {[%clk 0:01:23]}  Qa5 {[%clk 0:01:51]} 17. Na4 {[%clk 0:01:10]}  Rd8 {[%clk 0:01:45]} 18. Bc3 {[%clk 0:01:03]}  Qc7 {[%clk 0:01:44]} 19. h3 {[%clk 0:00:59]}  Bc8 {[%clk 0:01:29]} 20. Kh2 {[%clk 0:00:40]}  h5 {[%clk 0:01:25]} 21. h4 {[%clk 0:00:38]}  Bg4 {[%clk 0:01:21]} 22. Nc5 {[%clk 0:00:37]}  Rxd1 {[%clk 0:01:09]} 23. Rxd1 {[%clk 0:00:37]}  b6 {[%clk 0:01:10]} 24. Na6 {[%clk 0:00:31]}  Qe7 {[%clk 0:00:55]} 25. Nb4 {[%clk 0:00:30]}  e4 {[%clk 0:00:52]} 26. Nxc6 {[%clk 0:00:25]}  Qa3 {[%clk 0:00:44]} 27. Nd4 {[%clk 0:00:20]}  e3 {[%clk 0:00:35]} 28. fxe3 {[%clk 0:00:17]}  Qe7 {[%clk 0:00:36]} 29. Rd3 {[%clk 0:00:14]}  Be5 {[%clk 0:00:36]} 30. e4 {[%clk 0:00:05]}  Qxh4+ {[%clk 0:00:32]} 31. Kg1 {[%clk 0:00:06]}  Qf6 {[%clk 0:00:30]} 32. Nb5 {[%clk 0:00:02]}  Bxe2 {[%clk 0:00:24]} 33. Rd6 {[%clk 0:00:03]}  Qg5 {[%clk 0:00:19]} 34. Bxe5 {[%clk 0:00:02]}  Qxe5 {[%clk 0:00:20]} 35. Rd5 {[%clk 0:00:02]}  Qxg3 {[%clk 0:00:20]} 36. Nd4 {[%clk 0:00:02]}  Bg4 {[%clk 0:00:20]} 37. e5 {[%clk 0:00:02]}  h4 {[%clk 0:00:19]} 38. e6 {[%clk 0:00:01]}  h3 {[%clk 0:00:15]} 0-1


[Site "https://www.chess.com"]

[Event "Titled Tuesday Blitz February 07 Late 2023"]
[White "Deac, Bogdan-Daniel"]
[Black "Makhnev, Denis"]
[WhiteFideId "1226380"]
[BlackFideId "13707647"]
[WhiteElo "2700"]
[BlackElo "2483"]
[Result "1-0"]
[Round "06"]
[TimeControl "180+2"]
[Date "2023.02.07"]
[WhiteClock "0:00:02"]
[BlackClock "0:00:06"]

1. d4 {[%clk 0:03:00]}  Nf6 {[%clk 0:02:59]} 2. c4 {[%clk 0:03:01]}  e6 {[%clk 0:02:59]} 3. Nf3 {[%clk 0:03:01]}  d5 {[%clk 0:03:00]} 4. Nc3 {[%clk 0:03:01]}  c6 {[%clk 0:03:00]} 5. cxd5 {[%clk 0:02:58]}  exd5 {[%clk 0:02:54]} 6. Bf4 {[%clk 0:02:57]}  Bf5 {[%clk 0:02:52]} 7. e3 {[%clk 0:02:57]}  Bd6 {[%clk 0:02:51]} 8. Bxd6 {[%clk 0:02:54]}  Qxd6 {[%clk 0:02:52]} 9. Qb3 {[%clk 0:02:54]}  Qc7 {[%clk 0:02:45]} 10. Rc1 {[%clk 0:02:49]}  Qb6 {[%clk 0:02:45]} 11. Nd2 {[%clk 0:02:43]}  O-O {[%clk 0:02:41]} 12. Be2 {[%clk 0:02:43]}  Nbd7 {[%clk 0:02:35]} 13. O-O {[%clk 0:02:43]}  Rfe8 {[%clk 0:02:36]} 14. Rfe1 {[%clk 0:02:41]}  h5 {[%clk 0:02:31]} 15. h3 {[%clk 0:02:34]}  g6 {[%clk 0:02:31]} 16. Bf1 {[%clk 0:02:28]}  Kg7 {[%clk 0:02:30]} 17. f3 {[%clk 0:02:21]}  h4 {[%clk 0:02:29]} 18. Qxb6 {[%clk 0:02:11]}  axb6 {[%clk 0:02:24]} 19. e4 {[%clk 0:02:08]}  Be6 {[%clk 0:02:24]} 20. a4 {[%clk 0:02:08]}  g5 {[%clk 0:02:18]} 21. Kf2 {[%clk 0:02:03]}  Red8 {[%clk 0:02:09]} 22. Rcd1 {[%clk 0:01:32]}  Nf8 {[%clk 0:02:05]} 23. b4 {[%clk 0:00:37]}  dxe4 {[%clk 0:01:25]} 24. Ndxe4 {[%clk 0:00:36]}  Nxe4+ {[%clk 0:01:25]} 25. fxe4 {[%clk 0:00:34]}  Bb3 {[%clk 0:01:25]} 26. Rd2 {[%clk 0:00:34]}  Bxa4 {[%clk 0:01:25]} 27. d5 {[%clk 0:00:23]}  Ng6 {[%clk 0:00:54]} 28. b5 {[%clk 0:00:09]}  cxd5 {[%clk 0:00:16]} 29. exd5 {[%clk 0:00:09]}  Bb3 {[%clk 0:00:16]} 30. Rb1 {[%clk 0:00:06]}  Ra3 {[%clk 0:00:16]} 31. Rbb2 {[%clk 0:00:06]}  Ba4 {[%clk 0:00:09]} 32. Nxa4 {[%clk 0:00:03]}  Rxa4 {[%clk 0:00:09]} 33. Rbc2 {[%clk 0:00:04]}  Nf4 {[%clk 0:00:07]} 34. d6 {[%clk 0:00:04]}  Ne6 {[%clk 0:00:07]} 35. Be2 {[%clk 0:00:02]}  Rf4+ {[%clk 0:00:06]} 36. Bf3 {[%clk 0:00:02]}  Nd4 {[%clk 0:00:06]} 37. Rc7 {[%clk 0:00:02]}  Rxd6 {[%clk 0:00:06]} 38. Rxb7 {[%clk 0:00:02]} 1-0


[Site "https://www.chess.com"]

[Event "Titled Tuesday Blitz February 07 Late 2023"]
[White "Makarian, Rudik"]
[Black "Paravyan, David"]
[WhiteFideId "44105681"]
[BlackFideId "4194985"]
[WhiteElo "2545"]
[BlackElo "2601"]
[Result "0-1"]
[Round "06"]
[TimeControl "180+2"]
[Date "2023.02.07"]
[WhiteClock "0:00:01"]
[BlackClock "0:00:23"]

1. d4 {[%clk 0:03:00]}  Nf6 {[%clk 0:02:57]} 2. c4 {[%clk 0:03:01]}  g6 {[%clk 0:02:58]} 3. Nc3 {[%clk 0:03:02]}  d5 {[%clk 0:02:58]} 4. Bf4 {[%clk 0:03:03]}  Bg7 {[%clk 0:02:58]} 5. e3 {[%clk 0:03:03]}  O-O {[%clk 0:02:56]} 6. Rc1 {[%clk 0:03:03]}  c6 {[%clk 0:02:55]} 7. Nf3 {[%clk 0:02:52]}  Bg4 {[%clk 0:02:54]} 8. cxd5 {[%clk 0:02:38]}  Nxd5 {[%clk 0:02:52]} 9. Nxd5 {[%clk 0:02:38]}  cxd5 {[%clk 0:02:53]} 10. a3 {[%clk 0:02:09]}  Nc6 {[%clk 0:02:53]} 11. Be2 {[%clk 0:02:09]}  Qb6 {[%clk 0:02:53]} 12. b4 {[%clk 0:02:02]}  Rfc8 {[%clk 0:02:11]} 13. O-O {[%clk 0:02:00]}  e6 {[%clk 0:02:11]} 14. Nd2 {[%clk 0:01:25]}  Bxe2 {[%clk 0:02:09]} 15. Qxe2 {[%clk 0:01:26]}  a6 {[%clk 0:01:46]} 16. Rc2 {[%clk 0:00:49]}  e5 {[%clk 0:01:32]} 17. dxe5 {[%clk 0:00:47]}  Nxe5 {[%clk 0:01:33]} 18. Rxc8+ {[%clk 0:00:38]}  Rxc8 {[%clk 0:01:32]} 19. Bxe5 {[%clk 0:00:39]}  Bxe5 {[%clk 0:01:33]} 20. Nf3 {[%clk 0:00:40]}  Bf6 {[%clk 0:01:33]} 21. Qd2 {[%clk 0:00:32]}  Qb5 {[%clk 0:01:32]} 22. Rd1 {[%clk 0:00:20]}  Rc3 {[%clk 0:01:29]} 23. g4 {[%clk 0:00:19]}  Rxa3 {[%clk 0:01:15]} 24. Qxd5 {[%clk 0:00:19]}  Ra1 {[%clk 0:01:05]} 25. Kg2 {[%clk 0:00:14]}  Rxd1 {[%clk 0:01:05]} 26. Qxd1 {[%clk 0:00:15]}  Qxb4 {[%clk 0:01:03]} 27. h3 {[%clk 0:00:14]}  Qe4 {[%clk 0:01:03]} 28. Qd7 {[%clk 0:00:12]}  Qc6 {[%clk 0:01:03]} 29. Qd3 {[%clk 0:00:09]}  a5 {[%clk 0:01:01]} 30. e4 {[%clk 0:00:09]}  a4 {[%clk 0:00:59]} 31. g5 {[%clk 0:00:09]}  Bb2 {[%clk 0:00:56]} 32. h4 {[%clk 0:00:04]}  a3 {[%clk 0:00:56]} 33. h5 {[%clk 0:00:05]}  gxh5 {[%clk 0:00:45]} 34. Nh4 {[%clk 0:00:05]}  Bg7 {[%clk 0:00:45]} 35. Nf5 {[%clk 0:00:04]}  Bf8 {[%clk 0:00:46]} 36. Qd4 {[%clk 0:00:02]}  a2 {[%clk 0:00:38]} 37. f3 {[%clk 0:00:02]}  Qg6 {[%clk 0:00:25]} 38. f4 {[%clk 0:00:02]}  h6 {[%clk 0:00:25]} 39. Qd8 {[%clk 0:00:01]}  Qxf5 {[%clk 0:00:22]} 40. exf5 {[%clk 0:00:01]}  a1=Q {[%clk 0:00:23]} 0-1


[Site "https://www.chess.com"]

[Event "Titled Tuesday Blitz February 07 Late 2023"]
[White "Milikow, Yoav"]
[Black "Hakobyan, Aram"]
[WhiteFideId "2822237"]
[BlackFideId "13306677"]
[WhiteElo "2394"]
[BlackElo "2608"]
[Result "0-1"]
[Round "06"]
[TimeControl "180+2"]
[Date "2023.02.07"]
[WhiteClock "0:00:06"]
[BlackClock "0:00:51"]

1. d4 {[%clk 0:02:59]}  g6 {[%clk 0:03:00]} 2. c4 {[%clk 0:02:57]}  Bg7 {[%clk 0:03:01]} 3. Nc3 {[%clk 0:02:58]}  c5 {[%clk 0:03:01]} 4. d5 {[%clk 0:02:58]}  d6 {[%clk 0:03:02]} 5. e4 {[%clk 0:02:58]}  Bxc3+ {[%clk 0:03:03]} 6. bxc3 {[%clk 0:02:59]}  e5 {[%clk 0:03:03]} 7. h4 {[%clk 0:02:56]}  h6 {[%clk 0:03:01]} 8. h5 {[%clk 0:02:51]}  Nd7 {[%clk 0:02:59]} 9. Bd3 {[%clk 0:02:24]}  Qf6 {[%clk 0:02:51]} 10. Ne2 {[%clk 0:02:15]}  Kd8 {[%clk 0:02:50]} 11. hxg6 {[%clk 0:02:12]}  fxg6 {[%clk 0:02:50]} 12. Be3 {[%clk 0:02:10]}  Kc7 {[%clk 0:02:47]} 13. Qd2 {[%clk 0:02:07]}  g5 {[%clk 0:02:44]} 14. Ng3 {[%clk 0:02:02]}  Ne7 {[%clk 0:02:44]} 15. a4 {[%clk 0:01:53]}  a5 {[%clk 0:02:44]} 16. O-O {[%clk 0:01:39]}  Nf8 {[%clk 0:02:36]} 17. Rfb1 {[%clk 0:01:39]}  Ra6 {[%clk 0:02:32]} 18. Bf1 {[%clk 0:01:37]}  Nfg6 {[%clk 0:02:30]} 19. Ne2 {[%clk 0:01:28]}  Nf4 {[%clk 0:02:29]} 20. f3 {[%clk 0:01:26]}  h5 {[%clk 0:02:29]} 21. g3 {[%clk 0:01:24]}  Rg8 {[%clk 0:02:21]} 22. Kf2 {[%clk 0:01:20]}  Nxe2 {[%clk 0:02:18]} 23. Kxe2 {[%clk 0:01:18]}  h4 {[%clk 0:02:15]} 24. g4 {[%clk 0:01:18]}  Bd7 {[%clk 0:02:15]} 25. Bh3 {[%clk 0:01:16]}  Nc8 {[%clk 0:02:02]} 26. Rb5 {[%clk 0:01:07]}  Bxb5 {[%clk 0:01:58]} 27. axb5 {[%clk 0:01:03]}  Ra8 {[%clk 0:01:58]} 28. Rf1 {[%clk 0:00:51]}  Nb6 {[%clk 0:01:56]} 29. Kd3 {[%clk 0:00:51]}  a4 {[%clk 0:01:56]} 30. Qf2 {[%clk 0:00:43]}  Qe7 {[%clk 0:01:53]} 31. Rd1 {[%clk 0:00:34]}  a3 {[%clk 0:01:53]} 32. Bf1 {[%clk 0:00:35]}  Ra4 {[%clk 0:01:53]} 33. Kc2 {[%clk 0:00:35]}  a2 {[%clk 0:01:52]} 34. Ra1 {[%clk 0:00:27]}  Rga8 {[%clk 0:01:32]} 35. Qd2 {[%clk 0:00:18]}  Qf7 {[%clk 0:01:25]} 36. Kb3 {[%clk 0:00:14]}  Qxf3 {[%clk 0:01:20]} 37. Be2 {[%clk 0:00:14]}  Qxe4 {[%clk 0:01:15]} 38. Bd3 {[%clk 0:00:12]}  Qxg4 {[%clk 0:01:15]} 39. Qf2 {[%clk 0:00:12]}  Ra3+ {[%clk 0:01:06]} 40. Kc2 {[%clk 0:00:11]}  Nd7 {[%clk 0:00:54]} 41. Bf5 {[%clk 0:00:06]}  Qxc4 {[%clk 0:00:50]} 42. Bxd7 {[%clk 0:00:06]}  Qxc3+ {[%clk 0:00:50]} 43. Kd1 {[%clk 0:00:06]}  Qxa1+ {[%clk 0:00:50]} 44. Bc1 {[%clk 0:00:06]}  Qxc1+ {[%clk 0:00:51]} 0-1


[Site "https://www.chess.com"]

[Event "Titled Tuesday Blitz February 07 Late 2023"]
[White "Duda, Jan-Krzysztof"]
[Black "Stoyanov, Tsvetan"]
[WhiteFideId "1170546"]
[BlackFideId "2917173"]
[WhiteElo "2724"]
[BlackElo "2454"]
[Result "1-0"]
[Round "06"]
[TimeControl "180+2"]
[Date "2023.02.07"]
[WhiteClock "0:00:38"]
[BlackClock "0:00:01"]

1. e4 {[%clk 0:03:00]}  c5 {[%clk 0:03:00]} 2. Nf3 {[%clk 0:03:00]}  d6 {[%clk 0:03:00]} 3. Bc4 {[%clk 0:02:58]}  Nf6 {[%clk 0:02:57]} 4. d3 {[%clk 0:02:58]}  Nc6 {[%clk 0:02:56]} 5. c3 {[%clk 0:02:58]}  e6 {[%clk 0:02:50]} 6. Bb3 {[%clk 0:02:58]}  Be7 {[%clk 0:02:48]} 7. O-O {[%clk 0:02:58]}  O-O {[%clk 0:02:48]} 8. Nbd2 {[%clk 0:02:58]}  b5 {[%clk 0:02:46]} 9. Re1 {[%clk 0:02:58]}  Rb8 {[%clk 0:02:42]} 10. Nf1 {[%clk 0:02:57]}  Re8 {[%clk 0:02:32]} 11. d4 {[%clk 0:02:57]}  cxd4 {[%clk 0:02:20]} 12. cxd4 {[%clk 0:02:58]}  d5 {[%clk 0:02:20]} 13. e5 {[%clk 0:02:56]}  Ne4 {[%clk 0:02:20]} 14. Ng3 {[%clk 0:02:52]}  Bb7 {[%clk 0:02:08]} 15. Bc2 {[%clk 0:02:48]}  Nb4 {[%clk 0:01:56]} 16. Bb1 {[%clk 0:02:48]}  a5 {[%clk 0:01:53]} 17. a3 {[%clk 0:02:44]}  Na6 {[%clk 0:01:53]} 18. Nd2 {[%clk 0:02:31]}  Rc8 {[%clk 0:01:43]} 19. Ndxe4 {[%clk 0:02:19]}  dxe4 {[%clk 0:01:44]} 20. Nxe4 {[%clk 0:02:18]}  Qd5 {[%clk 0:01:28]} 21. Qg4 {[%clk 0:02:11]}  Red8 {[%clk 0:01:15]} 22. Bh6 {[%clk 0:01:52]}  g6 {[%clk 0:01:14]} 23. Be3 {[%clk 0:01:51]}  h5 {[%clk 0:01:08]} 24. Qg3 {[%clk 0:01:46]}  b4 {[%clk 0:00:56]} 25. f3 {[%clk 0:01:13]}  Qb3 {[%clk 0:00:41]} 26. Nf6+ {[%clk 0:01:09]}  Bxf6 {[%clk 0:00:41]} 27. exf6 {[%clk 0:01:10]}  Kf8 {[%clk 0:00:13]} 28. Bxg6 {[%clk 0:01:09]}  Rc7 {[%clk 0:00:06]} 29. Bh7 {[%clk 0:00:57]}  Ke8 {[%clk 0:00:06]} 30. Bf4 {[%clk 0:00:58]}  Kd7 {[%clk 0:00:02]} 31. Bxc7 {[%clk 0:00:52]}  Nxc7 {[%clk 0:00:03]} 32. Qg7 {[%clk 0:00:51]}  Qxb2 {[%clk 0:00:02]} 33. Qxf7+ {[%clk 0:00:47]}  Kc8 {[%clk 0:00:02]} 34. axb4 {[%clk 0:00:43]}  Qxd4+ {[%clk 0:00:02]} 35. Kh1 {[%clk 0:00:43]}  axb4 {[%clk 0:00:03]} 36. Rac1 {[%clk 0:00:43]}  Qd6 {[%clk 0:00:02]} 37. Rxe6 {[%clk 0:00:40]}  Qd1+ {[%clk 0:00:02]} 38. Re1 {[%clk 0:00:41]}  Qd6 {[%clk 0:00:02]} 39. Qe7 {[%clk 0:00:38]}  Qxe7 {[%clk 0:00:02]} 40. fxe7 {[%clk 0:00:37]}  Re8 {[%clk 0:00:02]} 41. Bf5+ {[%clk 0:00:38]}  Kb8 {[%clk 0:00:01]} 42. Bd7 {[%clk 0:00:38]} 1-0


[Site "https://www.chess.com"]

[Event "Titled Tuesday Blitz February 07 Late 2023"]
[White "Zhigalko, Sergei"]
[Black "Sokolovsky, Yahli"]
[WhiteFideId "13502956"]
[BlackFideId "2820242"]
[WhiteElo "2572"]
[BlackElo "2461"]
[Result "1-0"]
[Round "06"]
[TimeControl "180+2"]
[Date "2023.02.07"]
[WhiteClock "0:00:04"]
[BlackClock "0:00:03"]

1. e4 {[%clk 0:03:00]}  g6 {[%clk 0:02:57]} 2. d4 {[%clk 0:03:00]}  Bg7 {[%clk 0:02:57]} 3. Nc3 {[%clk 0:03:01]}  d6 {[%clk 0:02:58]} 4. Nf3 {[%clk 0:03:02]}  a6 {[%clk 0:02:57]} 5. Be3 {[%clk 0:03:02]}  b5 {[%clk 0:02:57]} 6. a4 {[%clk 0:03:03]}  b4 {[%clk 0:02:57]} 7. Ne2 {[%clk 0:03:03]}  a5 {[%clk 0:02:53]} 8. Ng3 {[%clk 0:03:03]}  Bb7 {[%clk 0:02:50]} 9. c3 {[%clk 0:03:01]}  Na6 {[%clk 0:02:40]} 10. Bd3 {[%clk 0:02:56]}  Nf6 {[%clk 0:02:39]} 11. O-O {[%clk 0:02:53]}  O-O {[%clk 0:02:39]} 12. Re1 {[%clk 0:02:53]}  c5 {[%clk 0:02:31]} 13. Rb1 {[%clk 0:02:33]}  cxd4 {[%clk 0:02:23]} 14. cxd4 {[%clk 0:02:32]}  Ng4 {[%clk 0:02:15]} 15. Bg5 {[%clk 0:02:08]}  h6 {[%clk 0:02:13]} 16. Bd2 {[%clk 0:02:08]}  e5 {[%clk 0:01:36]} 17. h3 {[%clk 0:02:07]}  Nf6 {[%clk 0:01:37]} 18. dxe5 {[%clk 0:02:02]}  dxe5 {[%clk 0:01:38]} 19. Nxe5 {[%clk 0:01:26]}  Re8 {[%clk 0:01:38]} 20. f4 {[%clk 0:01:20]}  Nc5 {[%clk 0:00:39]} 21. Bc4 {[%clk 0:01:16]}  Rxe5 {[%clk 0:00:28]} 22. fxe5 {[%clk 0:01:15]}  Nfxe4 {[%clk 0:00:28]} 23. Nxe4 {[%clk 0:01:13]}  Nxe4 {[%clk 0:00:19]} 24. Be3 {[%clk 0:01:06]}  Qc7 {[%clk 0:00:19]} 25. Rc1 {[%clk 0:00:59]}  Qxe5 {[%clk 0:00:19]} 26. Qd7 {[%clk 0:00:59]}  Nd6 {[%clk 0:00:12]} 27. Bxf7+ {[%clk 0:00:35]}  Kh7 {[%clk 0:00:13]} 28. Ba2 {[%clk 0:00:06]}  Qxb2 {[%clk 0:00:11]} 29. Qg4 {[%clk 0:00:06]}  Qxa2 {[%clk 0:00:10]} 30. Rc7 {[%clk 0:00:06]}  h5 {[%clk 0:00:03]} 31. Qg5 {[%clk 0:00:04]} 1-0


[Site "https://www.chess.com"]